[Event "Early-Titled-Tuesday-Blitz-November-28-2023"]
[Site "Chess.com"]
[Date "2023.11.28"]
[Round "8"]
[White "Dewarfd"]
[Black "andrzej"]
[Result "0-1"]
[WhiteElo "2148"]
[BlackElo "2454"]
[TimeControl "180+1"]
[EndTime "9:35:43 PST"]
[Termination "andrzej won on time"]

1. d4 {[%clk 0:02:46.2]} 1... d5 {[%clk 0:02:57.9]} 2. e3 {[%clk 0:02:46.3]}
2... Nf6 {[%clk 0:02:57.1]} 3. Nf3 {[%clk 0:02:44.8]} 3... e6 {[%clk 0:02:51.4]}
4. Bd3 {[%clk 0:02:45]} 4... g6 {[%clk 0:02:37.8]} 5. O-O {[%clk 0:02:43.9]}
5... Bg7 {[%clk 0:02:38.4]} 6. b4 {[%clk 0:02:42.3]} 6... O-O {[%clk 0:02:37.9]}
7. c4 {[%clk 0:02:42.5]} 7... a5 {[%clk 0:02:35.2]} 8. b5 {[%clk 0:02:41.3]}
8... c5 {[%clk 0:02:35.5]} 9. bxc6 {[%clk 0:02:41.1]} 9... Nxc6 {[%clk
0:02:35.1]} 10. Nbd2 {[%clk 0:02:39]} 10... b6 {[%clk 0:02:30.2]} 11. Ba3 {[%clk
0:02:39]} 11... Re8 {[%clk 0:02:28.7]} 12. Rb1 {[%clk 0:02:38.9]} 12... Ba6
{[%clk 0:02:25.7]} 13. Qb3 {[%clk 0:02:34.7]} 13... dxc4 {[%clk 0:02:18.2]} 14.
Nxc4 {[%clk 0:02:26.4]} 14... b5 {[%clk 0:02:08.1]} 15. Nce5 {[%clk 0:02:22.4]}
15... Nxe5 {[%clk 0:02:01]} 16. Nxe5 {[%clk 0:02:23.3]} 16... b4 {[%clk
0:01:56.9]} 17. Bxa6 {[%clk 0:02:16.4]} 17... Rxa6 {[%clk 0:01:54.1]} 18. Bb2
{[%clk 0:02:16.4]} 18... Nd5 {[%clk 0:01:47.2]} 19. Rbc1 {[%clk 0:02:06]} 19...
a4 {[%clk 0:01:39.9]} 20. Qc4 {[%clk 0:01:59.4]} 20... Qa8 {[%clk 0:01:40.3]}
21. e4 {[%clk 0:01:38.5]} 21... Nf4 {[%clk 0:01:39.9]} 22. g3 {[%clk 0:00:57.4]}
22... Nh3+ {[%clk 0:01:06.6]} 23. Kg2 {[%clk 0:00:56.6]} 23... Ng5 {[%clk
0:01:06.8]} 24. f3 {[%clk 0:00:38.6]} 24... h5 {[%clk 0:01:07.2]} 25. h4 {[%clk
0:00:37]} 25... Nh7 {[%clk 0:01:00.8]} 26. Nc6 {[%clk 0:00:31.8]} 26... b3
{[%clk 0:00:51.9]} 27. axb3 {[%clk 0:00:31.6]} 27... a3 {[%clk 0:00:52.2]} 28.
Ba1 {[%clk 0:00:30.6]} 28... Nf6 {[%clk 0:00:44.8]} 29. d5 {[%clk 0:00:19.8]}
29... exd5 {[%clk 0:00:41.5]} 30. exd5 {[%clk 0:00:20]} 30... a2 {[%clk
0:00:27]} 31. d6 {[%clk 0:00:16.5]} 31... Kh7 {[%clk 0:00:16.2]} 32. Ne7 {[%clk
0:00:10.6]} 32... Rxd6 {[%clk 0:00:14.3]} 33. Qxf7 {[%clk 0:00:10]} 33... Rxe7
{[%clk 0:00:09.1]} 34. Qxe7 {[%clk 0:00:08.8]} 34... Rd2+ {[%clk 0:00:09.3]} 35.
Rf2 {[%clk 0:00:07.8]} 35... Rd7 {[%clk 0:00:05.6]} 36. Qe2 {[%clk 0:00:04.9]}
36... Qa3 {[%clk 0:00:04.6]} 37. Bxf6 {[%clk 0:00:05.1]} 37... Qxc1 {[%clk
0:00:02.4]} 38. Bxg7 {[%clk 0:00:03.8]} 38... Rxg7 {[%clk 0:00:02.5]} 39. Qxa2
{[%clk 0:00:03.9]} 39... Qc5 {[%clk 0:00:02.5]} 40. Qc2 {[%clk 0:00:02.3]} 40...
Qb6 {[%clk 0:00:02.2]} 41. Qb2 {[%clk 0:00:02.1]} 41... Rb7 {[%clk 0:00:01.9]}
42. b4 {[%clk 0:00:01.6]} 42... Qb5 {[%clk 0:00:02.3]} 43. Rd2 {[%clk
0:00:01.7]} 43... Qf5 {[%clk 0:00:02.3]} 44. Kf2 {[%clk 0:00:01.6]} 44... Rf7
{[%clk 0:00:02.7]} 45. Rd3 {[%clk 0:00:01.5]} 45... Qxd3 {[%clk 0:00:02.7]} 0-1

[Event "Early-Titled-Tuesday-Blitz-November-28-2023"]
[Site "Chess.com"]
[Date "2023.11.28"]
[Round "8"]
[White "Elsa167"]
[Black "KaydenTroffChess"]
[Result "1-0"]
[WhiteElo "2916"]
[BlackElo "2790"]
[TimeControl "180+1"]
[EndTime "9:35:47 PST"]
[Termination "Elsa167 won by resignation"]

1. d4 {[%clk 0:03:00.9]} 1... Nf6 {[%clk 0:02:58.2]} 2. c4 {[%clk 0:03:00.9]}
2... g6 {[%clk 0:02:58.8]} 3. Nc3 {[%clk 0:03:00.9]} 3... d5 {[%clk 0:02:59.2]}
4. Nf3 {[%clk 0:02:57.9]} 4... Bg7 {[%clk 0:02:59]} 5. Bg5 {[%clk 0:02:58.5]}
5... Ne4 {[%clk 0:02:59.2]} 6. Bf4 {[%clk 0:02:57.3]} 6... Nxc3 {[%clk
0:02:57.1]} 7. bxc3 {[%clk 0:02:58.2]} 7... c5 {[%clk 0:02:48.1]} 8. cxd5 {[%clk
0:02:56.6]} 8... Qxd5 {[%clk 0:02:47.4]} 9. e3 {[%clk 0:02:56.6]} 9... O-O
{[%clk 0:02:45.4]} 10. Be2 {[%clk 0:02:55.3]} 10... Nc6 {[%clk 0:02:44.6]} 11.
O-O {[%clk 0:02:54.9]} 11... cxd4 {[%clk 0:02:44.6]} 12. cxd4 {[%clk 0:02:55.1]}
12... Bf5 {[%clk 0:02:44.4]} 13. Qa4 {[%clk 0:02:53.6]} 13... Qa5 {[%clk
0:02:44.6]} 14. Qxa5 {[%clk 0:02:52.7]} 14... Nxa5 {[%clk 0:02:44.6]} 15. Rfc1
{[%clk 0:02:52.2]} 15... Rac8 {[%clk 0:02:31.6]} 16. Nd2 {[%clk 0:02:40]} 16...
Rfd8 {[%clk 0:02:24.1]} 17. Bc7 {[%clk 0:02:24.6]} 17... Nc6 {[%clk 0:01:52.2]}
18. Bxd8 {[%clk 0:02:24.6]} 18... Rxd8 {[%clk 0:01:53.1]} 19. Bf3 {[%clk
0:02:18]} 19... Nxd4 {[%clk 0:00:57.9]} 20. exd4 {[%clk 0:02:16.4]} 20... Bxd4
{[%clk 0:00:58.8]} 21. Nb3 {[%clk 0:01:59.2]} 21... Bxa1 {[%clk 0:00:56.5]} 22.
Rxa1 {[%clk 0:01:59.9]} 22... b6 {[%clk 0:00:54.7]} 23. Kf1 {[%clk 0:01:43.8]}
23... Be6 {[%clk 0:00:50.7]} 24. Ke1 {[%clk 0:01:41.4]} 24... a5 {[%clk
0:00:42.5]} 25. Rd1 {[%clk 0:01:33.4]} 25... Rc8 {[%clk 0:00:24]} 26. Rc1 {[%clk
0:01:33]} 26... Rd8 {[%clk 0:00:24.3]} 27. Rc7 {[%clk 0:01:14.2]} 27... a4
{[%clk 0:00:21.4]} 28. Nc1 {[%clk 0:01:14.6]} 28... Kf8 {[%clk 0:00:20.1]} 29.
a3 {[%clk 0:01:06]} 29... b5 {[%clk 0:00:18.9]} 30. Be2 {[%clk 0:00:50]} 30...
Rd5 {[%clk 0:00:19.1]} 31. Nd3 {[%clk 0:00:45.2]} 31... Rd4 {[%clk 0:00:13.6]}
32. Nb4 {[%clk 0:00:34.8]} 32... Re4 {[%clk 0:00:12.7]} 33. Kd2 {[%clk
0:00:32.5]} 33... Rd4+ {[%clk 0:00:11.8]} 34. Bd3 {[%clk 0:00:31.7]} 34... Bb3
{[%clk 0:00:10.7]} 35. Ke3 {[%clk 0:00:30.8]} 35... Rd6 {[%clk 0:00:10.1]} 36.
Bxb5 {[%clk 0:00:29.7]} 36... Re6+ {[%clk 0:00:10.8]} 37. Kd2 {[%clk 0:00:29.7]}
37... Rf6 {[%clk 0:00:11.2]} 38. f3 {[%clk 0:00:29.6]} 38... Rd6+ {[%clk
0:00:11.9]} 39. Bd3 {[%clk 0:00:29.8]} 39... e5 {[%clk 0:00:12]} 40. Kc3 {[%clk
0:00:28.2]} 40... Be6 {[%clk 0:00:08.9]} 41. Bc4 {[%clk 0:00:28.3]} 41... Rd1
{[%clk 0:00:06.8]} 42. Bxe6 {[%clk 0:00:27.4]} 42... fxe6 {[%clk 0:00:07.7]} 43.
Nd3 {[%clk 0:00:23]} 43... Rg1 {[%clk 0:00:06.8]} 44. g4 {[%clk 0:00:22]} 44...
Rf1 {[%clk 0:00:06.8]} 45. Kb4 {[%clk 0:00:13.1]} 45... Rxf3 {[%clk 0:00:06.5]}
46. Nxe5 {[%clk 0:00:13.6]} 46... Re3 {[%clk 0:00:06.4]} 47. Nd7+ {[%clk
0:00:09.7]} 47... Ke7 {[%clk 0:00:05.9]} 48. Nb6+ {[%clk 0:00:08.3]} 48... Kd6
{[%clk 0:00:04.8]} 49. Nc4+ {[%clk 0:00:08.6]} 49... Kxc7 {[%clk 0:00:05.4]} 50.
Nxe3 {[%clk 0:00:09.5]} 50... Kc6 {[%clk 0:00:06]} 51. Kxa4 {[%clk 0:00:09.9]}
51... Kc5 {[%clk 0:00:06.7]} 52. Kb3 {[%clk 0:00:09.6]} 52... Kd4 {[%clk
0:00:07.1]} 53. Nc2+ {[%clk 0:00:10.3]} 53... Kc5 {[%clk 0:00:06.7]} 54. Kc3
{[%clk 0:00:10.4]} 54... Kd5 {[%clk 0:00:06]} 55. Kd3 {[%clk 0:00:10.9]} 55...
Ke5 {[%clk 0:00:06.6]} 56. Ke3 {[%clk 0:00:11.3]} 56... h5 {[%clk 0:00:06.7]}
57. g5 {[%clk 0:00:10.7]} 57... Kf5 {[%clk 0:00:06.7]} 58. a4 {[%clk 0:00:10]}
58... Ke5 {[%clk 0:00:06.3]} 59. a5 {[%clk 0:00:10.9]} 59... Kd5 {[%clk
0:00:06]} 60. a6 {[%clk 0:00:11.6]} 60... Kc6 {[%clk 0:00:06.4]} 61. Nb4+ {[%clk
0:00:12.2]} 61... Kb6 {[%clk 0:00:06.6]} 62. Ke4 {[%clk 0:00:13.1]} 1-0

[Event "Early-Titled-Tuesday-Blitz-November-28-2023"]
[Site "Chess.com"]
[Date "2023.11.28"]
[Round "8"]
[White "Chemim21"]
[Black "viktorgen2021"]
[Result "0-1"]
[WhiteElo "2224"]
[BlackElo "2469"]
[TimeControl "180+1"]
[EndTime "9:35:51 PST"]
[Termination "viktorgen2021 won on time"]

1. d4 {[%clk 0:03:00.9]} 1... Nf6 {[%clk 0:02:40.1]} 2. Nf3 {[%clk 0:02:59.7]}
2... g6 {[%clk 0:02:36.1]} 3. e3 {[%clk 0:02:59.8]} 3... Bg7 {[%clk 0:02:37]} 4.
b3 {[%clk 0:02:59.7]} 4... O-O {[%clk 0:02:37.9]} 5. Bb2 {[%clk 0:03:00]} 5...
d6 {[%clk 0:02:38.8]} 6. Nbd2 {[%clk 0:03:00.2]} 6... b6 {[%clk 0:02:39.7]} 7.
Bd3 {[%clk 0:02:57.4]} 7... Bb7 {[%clk 0:02:39.2]} 8. O-O {[%clk 0:02:56.6]}
8... Nbd7 {[%clk 0:02:38.9]} 9. e4 {[%clk 0:02:52.6]} 9... e5 {[%clk 0:02:38.7]}
10. dxe5 {[%clk 0:02:47.3]} 10... Ng4 {[%clk 0:02:37.9]} 11. Rb1 {[%clk
0:02:28.9]} 11... Ngxe5 {[%clk 0:02:36.5]} 12. Nxe5 {[%clk 0:02:28.9]} 12...
Nxe5 {[%clk 0:02:36.7]} 13. f4 {[%clk 0:02:24.9]} 13... Nxd3 {[%clk 0:02:29.4]}
14. cxd3 {[%clk 0:02:22.7]} 14... Bxb2 {[%clk 0:02:29.6]} 15. Rxb2 {[%clk
0:02:22.3]} 15... Qf6 {[%clk 0:02:30.5]} 16. Rc2 {[%clk 0:02:20.3]} 16... Qd4+
{[%clk 0:02:29.7]} 17. Kh1 {[%clk 0:02:16.7]} 17... Qxd3 {[%clk 0:02:23.3]} 18.
Rxc7 {[%clk 0:02:14.1]} 18... Bxe4 {[%clk 0:02:15.6]} 19. Nxe4 {[%clk 0:02:13]}
19... Qxe4 {[%clk 0:02:16.5]} 20. Qxd6 {[%clk 0:02:07.9]} 20... Rad8 {[%clk
0:02:14.7]} 21. Rd7 {[%clk 0:02:03.9]} 21... Rxd7 {[%clk 0:02:10.7]} 22. Qxd7
{[%clk 0:02:04]} 22... Qe2 {[%clk 0:01:56.1]} 23. Rg1 {[%clk 0:01:51.9]} 23...
Qxa2 {[%clk 0:01:52.8]} 24. f5 {[%clk 0:01:52.2]} 24... Qxb3 {[%clk 0:01:52]}
25. Qxa7 {[%clk 0:01:42.8]} 25... Qb5 {[%clk 0:01:41.4]} 26. fxg6 {[%clk
0:01:40.1]} 26... hxg6 {[%clk 0:01:42.3]} 27. h3 {[%clk 0:01:39.8]} 27... Qc6
{[%clk 0:01:38.5]} 28. Rb1 {[%clk 0:01:36.9]} 28... b5 {[%clk 0:01:34]} 29. Qa5
{[%clk 0:01:30.6]} 29... Re8 {[%clk 0:01:27.9]} 30. Qb4 {[%clk 0:01:04.2]} 30...
Re2 {[%clk 0:01:07.3]} 31. Qg4 {[%clk 0:00:55.1]} 31... Rc2 {[%clk 0:01:04.7]}
32. Qf3 {[%clk 0:00:41.3]} 32... Rc1+ {[%clk 0:00:57.9]} 33. Rxc1 {[%clk
0:00:35.6]} 33... Qxc1+ {[%clk 0:00:58.8]} 34. Kh2 {[%clk 0:00:35.8]} 34... Qc7+
{[%clk 0:00:56.2]} 35. Kg1 {[%clk 0:00:33.6]} 35... Qb6+ {[%clk 0:00:47.7]} 36.
Kf1 {[%clk 0:00:33]} 36... b4 {[%clk 0:00:48.3]} 37. Qb3 {[%clk 0:00:31.1]}
37... Qd4 {[%clk 0:00:45.6]} 38. Ke2 {[%clk 0:00:31.2]} 38... Qe4+ {[%clk
0:00:43.3]} 39. Kf2 {[%clk 0:00:29.5]} 39... Kg7 {[%clk 0:00:42.8]} 40. Qb2+
{[%clk 0:00:27.8]} 40... f6 {[%clk 0:00:38.8]} 41. Qd2 {[%clk 0:00:25.6]} 41...
Qe7 {[%clk 0:00:35.5]} 42. g4 {[%clk 0:00:22]} 42... b3 {[%clk 0:00:35.4]} 43.
Qb2 {[%clk 0:00:20.7]} 43... Qc5+ {[%clk 0:00:34]} 44. Kf3 {[%clk 0:00:20.4]}
44... Qc2 {[%clk 0:00:33.4]} 45. Qd4 {[%clk 0:00:19.7]} 45... b2 {[%clk
0:00:22.3]} 46. Qd7+ {[%clk 0:00:19.2]} 46... Kh6 {[%clk 0:00:21.8]} 47. Qe8
{[%clk 0:00:14.5]} 47... Qd3+ {[%clk 0:00:16]} 48. Kg2 {[%clk 0:00:12.5]} 48...
Qd2+ {[%clk 0:00:16.3]} 49. Kf3 {[%clk 0:00:11.6]} 49... Qd1+ {[%clk 0:00:09.4]}
50. Kf2 {[%clk 0:00:09.9]} 50... Qd4+ {[%clk 0:00:08.2]} 51. Kf3 {[%clk
0:00:08.9]} 51... Qd5+ {[%clk 0:00:07]} 52. Kf2 {[%clk 0:00:08.4]} 52... Qc5+
{[%clk 0:00:06.9]} 53. Kf3 {[%clk 0:00:08.3]} 53... Kg5 {[%clk 0:00:03.6]} 54.
h4+ {[%clk 0:00:04.3]} 54... Kxh4 {[%clk 0:00:03.2]} 0-1

[Event "Early-Titled-Tuesday-Blitz-November-28-2023"]
[Site "Chess.com"]
[Date "2023.11.28"]
[Round "8"]
[White "atbenina64"]
[Black "Sychev_on_YouTube"]
[Result "1-0"]
[WhiteElo "2787"]
[BlackElo "2896"]
[TimeControl "180+1"]
[EndTime "9:35:56 PST"]
[Termination "atbenina64 won on time"]

1. c4 {[%clk 0:03:00.9]} 1... c5 {[%clk 0:02:58.3]} 2. Nf3 {[%clk 0:03:01]} 2...
Nf6 {[%clk 0:02:58.3]} 3. Nc3 {[%clk 0:03:01]} 3... e6 {[%clk 0:02:58.9]} 4. g3
{[%clk 0:03:01.1]} 4... d5 {[%clk 0:02:58.7]} 5. cxd5 {[%clk 0:03:02]} 5... exd5
{[%clk 0:02:59.6]} 6. d4 {[%clk 0:03:02.7]} 6... Nc6 {[%clk 0:03:00.1]} 7. Bg2
{[%clk 0:03:03.1]} 7... cxd4 {[%clk 0:03:00.8]} 8. Nxd4 {[%clk 0:03:04]} 8...
Bc5 {[%clk 0:03:01.3]} 9. Nxc6 {[%clk 0:03:04.6]} 9... bxc6 {[%clk 0:03:01.3]}
10. O-O {[%clk 0:03:05.5]} 10... O-O {[%clk 0:03:01.5]} 11. Na4 {[%clk
0:03:06.2]} 11... Bb6 {[%clk 0:03:01.9]} 12. Qc2 {[%clk 0:03:04.1]} 12... Ba6
{[%clk 0:02:52]} 13. Nxb6 {[%clk 0:03:01.8]} 13... Qxb6 {[%clk 0:02:48.8]} 14.
Re1 {[%clk 0:02:53]} 14... Rfe8 {[%clk 0:02:46]} 15. e3 {[%clk 0:02:35.7]} 15...
Ng4 {[%clk 0:02:38.8]} 16. Bd2 {[%clk 0:02:26.3]} 16... Rad8 {[%clk 0:02:28.8]}
17. Qa4 {[%clk 0:02:18.9]} 17... Qxb2 {[%clk 0:01:58.6]} 18. Rad1 {[%clk
0:02:16.3]} 18... Bc4 {[%clk 0:01:48]} 19. Qxc6 {[%clk 0:02:06.1]} 19... Qxa2
{[%clk 0:01:20]} 20. Qc5 {[%clk 0:01:47.9]} 20... Bb3 {[%clk 0:01:09.8]} 21. Qd4
{[%clk 0:01:43.9]} 21... Bxd1 {[%clk 0:01:03.3]} 22. Rxd1 {[%clk 0:01:44.7]}
22... Qc4 {[%clk 0:00:54.8]} 23. Qa1 {[%clk 0:01:34]} 23... Rc8 {[%clk
0:00:11.6]} 24. Bh3 {[%clk 0:01:29.5]} 24... h5 {[%clk 0:00:10.8]} 25. Bf1
{[%clk 0:01:29]} 25... Qc2 {[%clk 0:00:08.9]} 26. Be1 {[%clk 0:01:21.9]} 26...
Qf5 {[%clk 0:00:08.4]} 27. Qxa7 {[%clk 0:01:19.5]} 27... Ne5 {[%clk 0:00:08.6]}
28. Bg2 {[%clk 0:01:16.9]} 28... Nf3+ {[%clk 0:00:08.8]} 29. Bxf3 {[%clk
0:01:15.4]} 29... Qxf3 {[%clk 0:00:09.7]} 30. Qd4 {[%clk 0:01:15.4]} 30... h4
{[%clk 0:00:09.6]} 31. Qxd5 {[%clk 0:01:04.4]} 31... Re4 {[%clk 0:00:09.5]} 32.
Rd4 {[%clk 0:00:57.7]} 32... Rc1 {[%clk 0:00:06]} 33. Qa8+ {[%clk 0:00:57.8]}
33... Kh7 {[%clk 0:00:06.2]} 34. Qxe4+ {[%clk 0:00:58.1]} 34... Qxe4 {[%clk
0:00:06.2]} 35. Rxe4 {[%clk 0:00:59]} 35... Rxe1+ {[%clk 0:00:06.3]} 36. Kg2
{[%clk 0:00:59.8]} 36... hxg3 {[%clk 0:00:06.8]} 37. hxg3 {[%clk 0:01:00.3]}
37... g6 {[%clk 0:00:07.4]} 38. Rd4 {[%clk 0:00:59.9]} 38... Kg7 {[%clk
0:00:07.7]} 39. Kf3 {[%clk 0:01:00.4]} 39... Rc1 {[%clk 0:00:07.9]} 40. Rd6
{[%clk 0:01:00.5]} 40... Rc2 {[%clk 0:00:08.3]} 41. e4 {[%clk 0:01:00.8]} 41...
Rc3+ {[%clk 0:00:08.7]} 42. Kf4 {[%clk 0:01:01.4]} 42... Rc2 {[%clk 0:00:09.1]}
43. f3 {[%clk 0:01:02]} 43... Rg2 {[%clk 0:00:09.2]} 44. Kg4 {[%clk 0:01:01.3]}
44... Rb2 {[%clk 0:00:09.6]} 45. Rd7 {[%clk 0:01:00.2]} 45... Rb4 {[%clk
0:00:09.6]} 46. Kf4 {[%clk 0:00:58.7]} 46... Kf6 {[%clk 0:00:10]} 47. Rd6+
{[%clk 0:00:59]} 47... Kg7 {[%clk 0:00:09.6]} 48. Rd5 {[%clk 0:00:54.6]} 48...
Ra4 {[%clk 0:00:09.6]} 49. Kg5 {[%clk 0:00:53.1]} 49... Ra3 {[%clk 0:00:09.1]}
50. Kg4 {[%clk 0:00:53.5]} 50... Rb3 {[%clk 0:00:09.4]} 51. e5 {[%clk
0:00:50.9]} 51... Re3 {[%clk 0:00:09.4]} 52. f4 {[%clk 0:00:49.4]} 52... Ra3
{[%clk 0:00:09.2]} 53. Rd7 {[%clk 0:00:49.7]} 53... Kg8 {[%clk 0:00:05.7]} 54.
Kh4 {[%clk 0:00:47.1]} 54... Rf3 {[%clk 0:00:04.9]} 55. Rd4 {[%clk 0:00:45.2]}
55... Kg7 {[%clk 0:00:04.7]} 56. g4 {[%clk 0:00:44.2]} 56... Ra3 {[%clk
0:00:02.1]} 57. Rd7 {[%clk 0:00:41.7]} 57... Ra4 {[%clk 0:00:01.5]} 58. Kg5
{[%clk 0:00:34.1]} 58... Ra6 {[%clk 0:00:01.9]} 59. f5 {[%clk 0:00:31.4]} 59...
gxf5 {[%clk 0:00:01.9]} 60. gxf5 {[%clk 0:00:32.3]} 60... Kf8 {[%clk 0:00:02.5]}
61. f6 {[%clk 0:00:28.7]} 61... Ra8 {[%clk 0:00:02.2]} 62. Kh6 {[%clk
0:00:26.3]} 62... Kg8 {[%clk 0:00:02.6]} 63. Rd4 {[%clk 0:00:24.4]} 63... Re8
{[%clk 0:00:02.6]} 64. Rg4+ {[%clk 0:00:23.8]} 64... Kf8 {[%clk 0:00:02.9]} 65.
Kh7 {[%clk 0:00:23.3]} 1-0

[Event "Early-Titled-Tuesday-Blitz-November-28-2023"]
[Site "Chess.com"]
[Date "2023.11.28"]
[Round "8"]
[White "Journey_to_GrandMaster_YT"]
[Black "emeli_chess"]
[Result "1/2-1/2"]
[WhiteElo "2529"]
[BlackElo "2382"]
[TimeControl "180+1"]
[EndTime "9:36:03 PST"]
[Termination "Game drawn - insufficient material"]

1. d4 {[%clk 0:03:00.9]} 1... Nf6 {[%clk 0:02:59.1]} 2. Nf3 {[%clk 0:03:01.8]}
2... d5 {[%clk 0:02:56.9]} 3. e3 {[%clk 0:03:01.7]} 3... c5 {[%clk 0:02:56.2]}
4. Bd3 {[%clk 0:03:00.4]} 4... Nc6 {[%clk 0:02:54.7]} 5. O-O {[%clk 0:03:00.3]}
5... cxd4 {[%clk 0:02:53.2]} 6. exd4 {[%clk 0:03:00.2]} 6... Bg4 {[%clk
0:02:53.2]} 7. c3 {[%clk 0:02:59.6]} 7... e6 {[%clk 0:02:51]} 8. h3 {[%clk
0:02:59.5]} 8... Bxf3 {[%clk 0:02:50.7]} 9. Qxf3 {[%clk 0:02:59.3]} 9... Be7
{[%clk 0:02:46.7]} 10. Bf4 {[%clk 0:02:48.6]} 10... h6 {[%clk 0:02:45.6]} 11.
Nd2 {[%clk 0:02:48.3]} 11... O-O {[%clk 0:02:37.9]} 12. Kh1 {[%clk 0:02:46.7]}
12... Bd6 {[%clk 0:02:34.8]} 13. Be3 {[%clk 0:02:44.4]} 13... e5 {[%clk
0:02:23.7]} 14. dxe5 {[%clk 0:02:39.4]} 14... Nxe5 {[%clk 0:02:23.7]} 15. Qe2
{[%clk 0:02:39.7]} 15... Nxd3 {[%clk 0:02:24.1]} 16. Qxd3 {[%clk 0:02:39.9]}
16... Re8 {[%clk 0:02:18.4]} 17. Rad1 {[%clk 0:02:38.3]} 17... Qe7 {[%clk
0:02:11.8]} 18. Nb3 {[%clk 0:02:32]} 18... Qe5 {[%clk 0:02:04.5]} 19. g3 {[%clk
0:02:29.1]} 19... b6 {[%clk 0:01:10.5]} 20. Bf4 {[%clk 0:02:18.1]} 20... Qe7
{[%clk 0:01:02.1]} 21. Bxd6 {[%clk 0:02:17]} 21... Qxd6 {[%clk 0:01:02]} 22. Nd4
{[%clk 0:02:13.6]} 22... Re4 {[%clk 0:00:53.8]} 23. Nf5 {[%clk 0:02:05.5]} 23...
Qe5 {[%clk 0:00:50.5]} 24. Ne3 {[%clk 0:02:03.4]} 24... Re8 {[%clk 0:00:43.3]}
25. Nxd5 {[%clk 0:01:58.8]} 25... Nxd5 {[%clk 0:00:43.1]} 26. Qxd5 {[%clk
0:01:59.1]} 26... Qxd5 {[%clk 0:00:43.1]} 27. Rxd5 {[%clk 0:02:00]} 27... Re2
{[%clk 0:00:43.4]} 28. Rb5 {[%clk 0:01:59.5]} 28... Rc2 {[%clk 0:00:40.6]} 29.
Kg2 {[%clk 0:01:58]} 29... Ree2 {[%clk 0:00:39.9]} 30. a4 {[%clk 0:01:53.3]}
30... Rxb2 {[%clk 0:00:39.1]} 31. Rxb2 {[%clk 0:01:49.8]} 31... Rxb2 {[%clk
0:00:39.1]} 32. Rd1 {[%clk 0:01:50.3]} 32... Ra2 {[%clk 0:00:37.2]} 33. Rd4
{[%clk 0:01:47]} 33... Ra3 {[%clk 0:00:37.2]} 34. Rc4 {[%clk 0:01:46.9]} 34...
a6 {[%clk 0:00:34.6]} 35. f4 {[%clk 0:01:46]} 35... b5 {[%clk 0:00:34.2]} 36.
axb5 {[%clk 0:01:46.3]} 36... axb5 {[%clk 0:00:34.4]} 37. Rc7 {[%clk 0:01:45.9]}
37... Rb3 {[%clk 0:00:32.1]} 38. h4 {[%clk 0:01:42]} 38... h5 {[%clk 0:00:31]}
39. f5 {[%clk 0:01:41.9]} 39... b4 {[%clk 0:00:29.6]} 40. cxb4 {[%clk
0:01:40.6]} 40... Rxb4 {[%clk 0:00:29.7]} 41. Kf3 {[%clk 0:01:41.1]} 41... Ra4
{[%clk 0:00:27.3]} 42. Rb7 {[%clk 0:01:38.6]} 42... Rc4 {[%clk 0:00:26.5]} 43.
Re7 {[%clk 0:01:37.4]} 43... Ra4 {[%clk 0:00:26]} 44. Re8+ {[%clk 0:01:33.6]}
44... Kh7 {[%clk 0:00:25.8]} 45. Rf8 {[%clk 0:01:34.3]} 45... f6 {[%clk
0:00:23.2]} 46. Re8 {[%clk 0:01:33.5]} 46... Rb4 {[%clk 0:00:22.2]} 47. Re4
{[%clk 0:01:32.7]} 47... Rb5 {[%clk 0:00:21]} 48. Kf4 {[%clk 0:01:32.9]} 48...
Kh6 {[%clk 0:00:20.6]} 49. Ra4 {[%clk 0:01:30.8]} 49... g5+ {[%clk 0:00:19]} 50.
hxg5+ {[%clk 0:01:28.7]} 50... fxg5+ {[%clk 0:00:18.8]} 51. Ke4 {[%clk
0:01:29.2]} 51... h4 {[%clk 0:00:17.6]} 52. g4 {[%clk 0:01:22.1]} 52... Kg7
{[%clk 0:00:15.7]} 53. Ra7+ {[%clk 0:01:21.4]} 53... Kf8 {[%clk 0:00:14.9]} 54.
Ra6 {[%clk 0:01:20]} 54... Rb4+ {[%clk 0:00:12]} 55. Ke5 {[%clk 0:01:20.5]}
55... Rxg4 {[%clk 0:00:11.4]} 56. Kf6 {[%clk 0:01:20.9]} 56... Ke8 {[%clk
0:00:09.1]} 57. Kg7 {[%clk 0:01:16.9]} 57... Rf4 {[%clk 0:00:08.7]} 58. f6
{[%clk 0:01:15.1]} 58... h3 {[%clk 0:00:08.6]} 59. Ra5 {[%clk 0:00:58.5]} 59...
g4 {[%clk 0:00:08]} 60. Rh5 {[%clk 0:00:59.1]} 60... Kd7 {[%clk 0:00:07.3]} 61.
f7 {[%clk 0:00:36.1]} 61... Ke6 {[%clk 0:00:06.6]} 62. f8=Q {[%clk 0:00:30]}
62... Rxf8 {[%clk 0:00:06.2]} 63. Kxf8 {[%clk 0:00:30.9]} 63... Kf6 {[%clk
0:00:06.7]} 64. Rh6+ {[%clk 0:00:28.2]} 64... Kg5 {[%clk 0:00:06.8]} 65. Kg7
{[%clk 0:00:27.5]} 65... Kf4 {[%clk 0:00:05.5]} 66. Kf6 {[%clk 0:00:27.3]} 66...
Kg3 {[%clk 0:00:05.8]} 67. Kf5 {[%clk 0:00:25.2]} 67... h2 {[%clk 0:00:05.9]}
68. Rxh2 {[%clk 0:00:18.2]} 68... Kxh2 {[%clk 0:00:06]} 69. Kxg4 {[%clk
0:00:19.1]} 1/2-1/2